Cogmind - Beta 15 @@@ ROGUE MODE // 2025.06.29 @ 02:35:03 Player: KTG-V3 Result: Destroyed by G-47 Trooper with Particle Gun Performance ------------- Evolutions (2) 1000 Regions Visited (7) 1400 Robots Destroyed (174) 870 Value Destroyed (5036) 5036 Prototype IDs (9) 180 Alien Tech Used (0) 0 Bonus (1768) 1768 TOTAL SCORE: 10254 Bonus ------- High Alert Combat Kills 327 Follower Combat Kills 241 Entered Garrisons 200 Used RIF Installer 1000 Cogmind --------- Core Integrity 0/550 Matter 176/300 Energy 279/280 System Corruption 1% Temperature Cool (18) Movement Core (1600) Ox31 Location -8/Materials Parts ------- > --- POWER (1) -------- Cooled Ion Engine > --- PROPULSION (3) --- (None) > --- UTILITY (5) ------ Huge Storage Unit Relay Coupler [Grunt] (24) Relay Coupler [Sentry] (1) Relay Coupler [Hunter] (16) > --- WEAPON (2) ------- Phase Cannon > --- INVENTORY (25) --- Cooled Ion Engine Light Treads Light Treads Light Treads Improved Treads Improved Treads Advanced Treads Energy Well (350) High-capacity Matter Pod (200) Relay Coupler [NC] (32) Relay Coupler [NC] (23) Relay Coupler [NC] (27) Relay Coupler [Swarmer] (27) Relay Coupler [Sentry] (24) Relay Coupler [Sentry] (20) Heavy Ion Cannon Heavy Ion Cannon Heavy Plasma Cannon Improved Datajack Plasma Cutter Peak State ------------ > --- POWER ------------ Angular Momentum Engine > --- PROPULSION ------- Armored Treads Armored Treads Medium Treads > --- UTILITY ---------- Advanced Heat Sink Huge Storage Unit Hardened Medium Armor Plating Relay Coupler [Grunt] Relay Coupler [Sentry] > --- WEAPON ----------- Heavy Ion Cannon Heavy Plasma Cannon > --- INVENTORY -------- Heavy Ion Engine Light Treads Light Treads Light Treads Light Treads Light Treads Improved Treads Advanced Treads Improved Heat Sink Improved Heat Sink Energy Well High-capacity Matter Pod Relay Coupler [NC] Relay Coupler [NC] Relay Coupler [NC] Relay Coupler [Swarmer] Relay Coupler [Sentry] Relay Coupler [Sentry] Relay Coupler [Hunter] Heavy Ion Cannon Heavy Ion Cannon Phase Cannon Rocket Launcher Improved Datajack Plasma Cutter [Rating: 46] Favorites ----------- Power Ion Engine Engine Ion Engine Power Core Fission Core Propulsion Light Treads Treads Light Treads Utility Huge Storage Unit Device Seismic Detector Storage Huge Storage Unit Processor Transport Network Coupler Hackware Relay Coupler [Grunt] Protection Improved Medium Armor Plating Weapon Light Cannon Energy Gun EM Pulse Gun Energy Cannon Advanced Beam Cannon Ballistic Gun Shotgun Ballistic Cannon Light Cannon Launcher Rocket Launcher Impact Weapon Heavy Mace Special Melee Weapon Improved Datajack Build | -11 -10 -10 -9 -9 -8 -8 -8 ------- Run | Yrd Mat Min Mat Min Mat Gar Mat Slots Evolved 4 | . . . 2 . 2 . . Power . | . . . . . . . . Propulsion 1 | . . . 1 . . . . Utility 3 | . . . 1 . 2 . . Weapon . | . . . . . . . . Parts Attached 105 | 8 15 3 23 5 13 23 15 Power 14 | 1 3 1 3 1 1 2 2 Engine 13 | 1 3 1 3 . 1 2 2 Core 1 | . . . . 1 . . . Reactor . | . . . . . . . . Propulsion 27 | 2 1 . 8 . 6 5 5 Treads 27 | 2 1 . 8 . 6 5 5 Leg . | . . . . . . . . Wheel . | . . . . . . . . Hover . | . . . . . . . . Flight . | . . . . . . . . Utility 31 | 2 4 . 3 3 3 11 5 Device 17 | 1 1 . 3 2 3 5 2 Storage 3 | 1 2 . . . . . . Processor 2 | . 1 . . . . . 1 Hackware 5 | . . . . . . 4 1 Protection 4 | . . . . 1 . 2 1 Artifact . | . . . . . . . . Weapon 33 | 3 7 2 9 1 3 5 3 Energy Gun 6 | 2 2 . 1 . . . 1 Energy Cannon 10 | . . . 2 . 2 5 1 Ballistic Gun 5 | 1 2 . 1 . . . 1 Ballistic Cannon 6 | . 2 1 2 1 . . . Launcher 4 | . 1 1 2 . . . . Special Weapon . | . . . . . . . . Impact Weapon 1 | . . . 1 . . . . Slashing Weapon . | . . . . . . . . Piercing Weapon . | . . . . . . . . Special Melee Weapon 1 | . . . . . 1 . . Unidentified Prototypes 5 | . 1 . 3 . . . 1 Parts Lost 22 | . . . 3 2 3 3 11 Power . | . . . . . . . . Propulsion 9 | . . . 2 . 3 . 4 Utility 9 | . . . 1 2 . 2 4 Weapon 4 | . . . . . . 1 3 Highest Loss Streak 10 | . . . 1 1 2 1 10 To Critical Strikes . | . . . . . . . . Average Backups 22 | 4 14 20 24 24 24 24 24 Power 1 | . 1 1 1 3 2 1 1 Propulsion 5 | 3 3 3 6 6 5 6 6 Utility 4 | . 1 3 3 3 2 6 10 Weapon 9 | . 8 12 11 10 11 7 4 Tool/Special . | . . . . . . . . Unused Backups 50 | . 6 . 8 1 10 7 18 Power 4 | . . . . . 2 . 2 Propulsion 14 | . 4 . 4 . . 1 5 Utility 13 | . 1 . 1 1 . 2 8 Weapon 17 | . 1 . 3 . 7 4 2 Tool/Special 2 | . . . . . 1 . 1 Average Slot Usage (%) 99 | . 99 100 99 99 99 99 98 Engine 10 | . 14 14 11 9 6 9 8 Treads 29 | . 27 28 32 33 27 27 26 Device 17 | . 13 14 21 17 27 17 8 Storage 10 | . 14 14 11 11 9 9 9 Hackware 3 | . . . . . . 8 18 Protection 3 | . . . . 3 8 9 8 Energy Gun 1 | . 6 . 2 . . . . Energy Cannon 7 | . . . 5 11 10 11 16 Ballistic Gun 1 | . 11 . . . . . . Ballistic Cannon 10 | . 10 27 12 10 7 4 . Peak Build Rating 46 | 7 11 10 18 25 35 40 46 Average Rating 22 | 5 9 9 14 22 31 35 42 On Entrance 17 | . 7 9 10 17 24 34 40 Naked Turns . | . . . . . . . . Heaviest Build 120 | 13 92 92 97 107 117 118 120 Greatest Support 68 | 40 40 40 60 60 62 62 68 Greatest Overweight (x) 31 | . 4 2 1 1 1 1 31 Average Overweight (x) 1 | . . 2 1 1 1 1 1 Largest Inventory Capacity 25 | 8 25 25 25 25 25 25 25 Average Capacity 23 | 7 18 25 25 25 25 25 25 Most Carried 25 | 6 18 22 25 25 25 25 25 Average Carried 22 | 4 14 20 24 24 24 24 24 Final Capacity 25 | 8 25 25 25 25 25 25 25 Final Carried 25 | 6 18 22 25 25 25 25 20 Class Distribution -------------------- 42% | Scavenger-Mutant 39% | Mutant 17% | Bothacker-Mutant Dominant Class ---------------- Mutant | -10/Materials Mutant | -10/Mines Scavenger-Mutant | -9/Materials Scavenger-Mutant | -9/Mines Scavenger-Mutant | -8/Materials Scavenger-Mutant | -8/Garrison Bothacker-Mutant | -8/Materials Resources | -11 -10 -10 -9 -9 -8 -8 -8 ----------- Run | Yrd Mat Min Mat Min Mat Gar Mat Matter Collected 3964 | 340 616 111 1152 496 379 524 346 Remotely . | . . . . . . . . Salvage Created 5165 | 266 702 64 1658 262 495 978 740 Parts 287 | 23 44 12 76 12 35 57 28 Haulers Intercepted 11 | . 2 . 6 . 1 . 2 Recyclers Shooed 8 | . 3 . 3 . . . 2 Parts Field Recycled . | . . . . . . . . Retrieved Matter . | . . . . . . . . Parts Self-Destructed . | . . . . . . . . Prevented . | . . . . . . . . Kills | -11 -10 -10 -9 -9 -8 -8 -8 ------- Run | Yrd Mat Min Mat Min Mat Gar Mat Combat Hostiles Destroyed 126 | . 14 3 33 18 14 29 15 Guns 15 | . 13 . 2 . . . . Cannons 68 | . . . 16 12 11 18 11 AOE 39 | . 1 3 13 6 3 10 3 Classes Destroyed 17 | 3 6 . 3 1 1 1 2 Worker 11 | 2 2 2 3 2 . . . Builder 9 | . 1 . 4 . 1 . 3 Tunneler 13 | 8 . 2 1 . 2 . . Hauler 11 | . 2 . 6 . 1 . 2 Recycler 7 | 1 1 . 4 . . . 1 Mechanic 1 | . . . . . . . 1 Operator 3 | . 2 . . . 1 . . Watcher 8 | . 2 . 2 . 2 . 2 Swarmer 39 | . 6 3 7 . 7 10 6 Cutter 2 | . . . . . . . 2 Grunt 41 | . 8 . 15 3 3 10 2 Brawler 3 | . . . 1 . . 1 1 Duelist 1 | . . . 1 . . . . Sentry 19 | . . . 9 . 3 5 2 Specialist 5 | . . . . . . 3 2 Hunter 1 | . . . . . 1 . . Assembled 15 | . . . . 15 . . . Best Kill Streak 8 | 8 7 5 6 7 5 4 5 Combat Bots Only 6 | . 3 3 4 6 4 4 3 Max Kills in Single Turn 7 | 1 1 3 4 7 4 4 2 Gunslinging . | . . . . . . . . Exploded 6 | . 1 3 3 6 3 4 1 Melee . | . . . . . . . . Uniques/NPCs Destroyed . | . . . . . . . . Combat | -11 -10 -10 -9 -9 -8 -8 -8 -------- Run | Yrd Mat Min Mat Min Mat Gar Mat Hostile Shots Fired 540 | . 53 5 136 23 48 102 173 Missed 142 | . 9 2 37 6 12 25 51 Hits 398 | . 44 3 99 17 36 77 122 Melee 6 | . . . . 4 . . 2 Projectile 392 | . 44 3 99 13 36 77 120 AOE 10 | . . . . 3 . . 7 Critical Strikes 10 | . 1 . 1 . . 3 5 Damage Taken 5906 | . 412 25 1341 391 472 1027 2238 Core 866 | . 77 . 201 28 41 148 371 Absorbed by Shields 121 | . . . . . 14 107 . Regen/Repaired (Parts) 471 | . 117 . 40 . . . 314 Core Remaining (%) 70 | 100 . 69 . 42 . . . Volleys Fired 403 | 20 64 6 109 39 37 79 49 Largest 2 | 2 2 2 2 2 2 2 2 Hottest 175 | 70 85 60 128 128 140 160 175 Shots Fired 746 | 40 115 11 210 78 73 128 91 Gun 197 | 40 114 . 43 . . . . Cannon 518 | . . 10 153 77 72 122 84 Launcher 31 | . 1 1 14 1 1 6 7 Special . | . . . . . . . . Kinetic 304 | 20 68 10 99 38 32 37 . Thermal 367 | 18 4 . 97 39 40 85 84 Explosive 31 | . 1 1 14 1 1 6 7 Electromagnetic 44 | 2 42 . . . . . . Robot Hit Streak 10 | 8 8 9 10 7 9 7 8 Robot Miss Streak 8 | 3 7 . 8 5 3 3 4 Penetration Max 1 | . . . . . 1 . . Secondary Targets 1 | . 1 . . . . . . Max Gunslinging Chain 1 | . 1 . . . . . . Shots Hit Robots 405 | 26 65 7 123 31 43 55 55 Core Hits 242 | 12 35 8 69 24 22 35 37 Critical Kills 4 | . . . 2 . . 1 1 Critical Parts Destroyed 3 | . . . 3 . . . . Critical Strikes 22 | 1 . . 6 2 8 4 1 Burn 1 | 1 . . . . . . . Meltdown 3 | . . . 1 . . 1 1 Blast 14 | . . . 1 2 8 3 . Smash 4 | . . . 4 . . . . Melee Attacks 28 | . . . 21 . . 5 2 Impact 21 | . . . 21 . . . . Slashing . | . . . . . . . . Piercing . | . . . . . . . . Sneak Attacks 12 | . . . 7 . . 4 1 Combat Hostiles . | . . . . . . . . Follow-up Attacks . | . . . . . . . . Damage Inflicted 12559 | 344 1079 187 4062 1051 1264 2025 2547 Guns 1710 | 344 928 . 438 . . . . Cannons 6494 | . . 122 1474 782 1047 1413 1656 Explosions 3574 | . 151 65 1372 269 217 612 888 Melee 778 | . . . 778 . . . . Ramming 3 | . . . . . . . 3 Kinetic 3111 | 147 552 122 812 392 549 537 . Thermal 4868 | 172 176 . 1100 390 498 876 1656 Explosive 3423 | . . 65 1372 269 217 612 888 Electromagnetic 376 | 25 351 . . . . . . Impact 778 | . . . 778 . . . . Slashing . | . . . . . . . . Piercing . | . . . . . . . . Highest Corruption 4 | . 1 1 2 4 . . 1 Average Corruption 1 | . 1 1 2 3 . . 1 Corruption Purged . | . . . . . . . . Corruption Blocked . | . . . . . . . . Effects 96 | . 11 11 37 37 . . . Message Errors 25 | . 3 5 10 7 . . . Matter Fused 26 | . 1 1 10 14 . . . Heat Flow Errors 15 | . 3 2 4 6 . . . Energy Discharges 8 | . 1 1 4 2 . . . Parts Rejected 1 | . . . 1 . . . . Data Loss (minor) 11 | . 1 2 4 4 . . . Data Loss (major) 3 | . 1 . 1 1 . . . Misfires 4 | . . . 3 1 . . . Alerts 3 | . 1 . . 2 . . . Overload Shots . | . . . . . . . . Overflow Damage 778 | . . . 501 43 16 60 158 Projectiles 225 | . . . 9 43 10 17 146 Explosions 114 | . . . 53 . 6 43 12 Melee 439 | . . . 439 . . . . Knockbacks 25 | . . . 10 6 4 5 . Impact . | . . . . . . . . Kinetic 24 | . . . 9 6 4 5 . Secondary 1 | . . . 1 . . . . Self-Inflicted Damage 361 | . . . 119 . . 117 125 Shots 9 | . . . 3 . . 3 3 Rammed . | . . . . . . . . Targets Rammed 1 | . . . . . . . 1 Kicked . | . . . . . . . . Crushed 1 | . . . . . . . 1 Highest Temperature 272 | 54 272 199 187 230 18 111 252 Average Temperature 58 | 21 69 100 41 44 8 27 97 Received Heat Transfer 1615 | . 108 . 483 24 96 391 513 Effects 5 | . 2 . . . . . 3 Interference 5 | . 2 . . . . . 3 Siege Activations . | . . . . . . . . Martial Activations . | . . . . . . . . Shielding Activations . | . . . . . . . . Robots Disrupted . | . . . . . . . . Combat Hostiles . | . . . . . . . . Robots Corrupted 3 | . . . 3 . . . . Combat Hostiles . | . . . . . . . . Parts Fried 8 | . 1 . 7 . . . . Impact Corruptions 11 | . . . 11 . . . . Robots Melted 4 | . . . 2 . . 1 1 Combat Hostiles 4 | . . . 2 . . 1 1 Parts Melted 16 | 1 . . 6 . 1 2 6 Heat Transferred 8706 | 592 274 . 2590 703 851 1286 2410 Parts Sabotaged . | . . . . . . . . Parts Stolen . | . . . . . . . . Parts Stripped . | . . . . . . . . Power Chain Reactions 5 | . 5 . . . . . . Alert | -11 -10 -10 -9 -9 -8 -8 -8 ------- Run | Yrd Mat Min Mat Min Mat Gar Mat Maximum Alert Level 4 | . . . 2 . 1 4 3 Low Security (%) 57 | 100 100 100 22 100 99 18 . Level 1 18 | . . . 47 . . 11 49 Level 2 16 | . . . 30 . . 27 45 Level 3 3 | . . . . . . 21 4 Level 4 3 | . . . . . . 21 . Level 5 . | . . . . . . . . High Security . | . . . . . . . . Max Security . | . . . . . . . . Peak Influence 1507 | 25 122 77 591 193 198 1507 734 Initial 734 | . 3 . . 193 . 100 734 Average 243 | 3 25 4 291 34 76 713 445 Influence Increases 4619 | 55 499 97 1253 114 543 1437 621 Destroy 0b10 Robot/C 2360 | . 280 60 660 60 280 680 340 Destroy 0b10 Robot/NC 325 | 55 50 20 100 10 35 5 50 Destroy Leader 460 | . 58 10 196 10 76 20 90 Allied During Kill 61 | . . . . . . 49 12 Successful Hack 134 | . 51 . 21 . 34 . 28 Disable Machine 255 | . 30 . 105 . 60 45 15 Anti-Garrison Action 450 | . . . . . . 450 . Destroy Structure 409 | . 30 7 126 34 28 113 71 Lose Combat Pursuer 165 | . . . 45 . 30 75 15 Influence Decreases 4331 | 50 504 97 756 610 390 84 1840 Entered New Map 1134 | . 2 . . 304 1 54 773 Time Decay 2403 | 50 438 97 576 296 369 . 577 Lost Part 200 | . . . 30 10 20 30 110 Lost Ally 80 | . . . . . . . 80 Purge Threat 514 | . 64 . 150 . . . 300 Squads Dispatched 16 | . 3 . 4 1 2 . 6 Investigation 4 | . 2 . 1 1 . . . Extermination . | . . . . . . . . Reinforcement 10 | . 1 . 3 . 2 . 4 Assault 1 | . . . . . . . 1 Garrison 1 | . . . . . . . 1 Intercept . | . . . . . . . . Searches Triggered . | . . . . . . . . Construction Impeded 1 | . . . 1 . . . . Haulers Reinforced . | . . . . . . . . Active Scanning Responses . | . . . . . . . . Cargo Convoy Interrupts . | . . . . . . . . Stealth | -11 -10 -10 -9 -9 -8 -8 -8 --------- Run | Yrd Mat Min Mat Min Mat Gar Mat Distress Signals 11 | . 2 . 5 1 2 1 . Communications Jammed . | . . . . . . . . Distress Signals . | . . . . . . . . Times Spotted 187 | . 26 3 52 20 23 33 30 Peak Tracking Total 8 | . 4 3 5 6 4 4 8 Tactical Retreats 9 | . . . 3 . 2 3 1 Traps | -11 -10 -10 -9 -9 -8 -8 -8 ------- Run | Yrd Mat Min Mat Min Mat Gar Mat Traps Triggered 7 | . 1 . 2 . . 3 1 Indirectly . | . . . . . . . . Trap Hack Attempts 1 | . . . . . . 1 . Triggered . | . . . . . . . . Disarmed . | . . . . . . . . Reprogrammed . | . . . . . . . . Reused . | . . . . . . . . Traps Extracted . | . . . . . . . . Installed . | . . . . . . . . Triggered . | . . . . . . . . Machines | -11 -10 -10 -9 -9 -8 -8 -8 ---------- Run | Yrd Mat Min Mat Min Mat Gar Mat Machines Disabled 23 | . 2 . 7 . 4 9 1 Max in Single Turn 1 | . 1 . 1 . 1 1 . Garrison Relay 5 | . . . . . . 5 . Machines Repaired . | . . . . . . . . Machines Dismantled . | . . . . . . . . Machines Sabotaged . | . . . . . . . . Overloaded Fab Kills . | . . . . . . . . Hacking | -11 -10 -10 -9 -9 -8 -8 -8 --------- Run | Yrd Mat Min Mat Min Mat Gar Mat Machines Accessed 41 | . 9 . 11 . 7 5 9 Terminals 30 | . 7 . 8 . 5 5 5 Fabricators . | . . . . . . . . Repair Stations 4 | . 1 . 1 . . . 2 Recycling Units 2 | . 1 . . . . . 1 Scanalyzers 4 | . . . 2 . 1 . 1 Garrison Access 1 | . . . . . 1 . . Total Hacks 133 | . 33 . 32 . 20 6 42 Successful 66 | . 17 . 14 . 7 3 25 Failed 66 | . 15 . 18 . 13 3 17 Catastrophic 12 | . 4 . 5 . 1 . 2 Database Lockouts 1 | . 1 . . . . . . Manual 43 | . 13 . 10 . 8 . 12 Terminals 93 | . 27 . 23 . 16 6 21 Fabricators . | . . . . . . . . Repair Stations 17 | . 4 . 4 . . . 9 Recycling Units 4 | . 2 . . . . . 2 Scanalyzers 17 | . . . 5 . 2 . 10 Garrison Access 2 | . . . . . 2 . . Terminal Hacks 31 | . 11 . 8 . 3 3 6 Record 1 | . 1 . . . . . . Part Schematic 2 | . 1 . 1 . . . . Robot Schematic 2 | . 1 . . . 1 . . Prototype ID Bank 2 | . 1 . 1 . . . . Open Door 1 | . . . . . . 1 . Branch Access Points 3 | . 1 . 1 . . . 1 Emergency Access Points 1 | . . . . . 1 . . Unreport Threat 4 | . 1 . 1 . . . 2 Locate Traps 7 | . 4 . 1 . 1 . 1 Maintenance Status 2 | . . . 1 . . . 1 Transport Status 1 | . . . 1 . . . . Hauler Manifests 1 | . . . 1 . . . . Zone Layout 2 | . 1 . . . . . 1 Garrison Registry 1 | . . . . . . 1 . Patrol Navigation 1 | . . . . . . 1 . Fabricator Hacks . | . . . . . . . . Repair Station Hacks 13 | . 4 . 3 . . . 6 Scan Component 7 | . 2 . 2 . . . 3 Repair 6 | . 2 . 1 . . . 3 Recycling Unit Hacks 2 | . 1 . . . . . 1 Retrieve Components 2 | . 1 . . . . . 1 Scanalyzer 12 | . . . 2 . 2 . 8 Insert Component 6 | . . . 1 . 1 . 4 Analyze 6 | . . . 1 . 1 . 4 Garrison Access Hacks 1 | . . . . . 1 . . Unlock Access 1 | . . . . . 1 . . Unauthorized Hacks 7 | . 1 . 1 . 1 . 4 Terminals 5 | . 1 . 1 . 1 . 2 Botnet 5 | . 1 . 1 . 1 . 2 Fabricators . | . . . . . . . . Repair Stations 1 | . . . . . . . 1 Mechanics 1 | . . . . . . . 1 Recycling Units 1 | . . . . . . . 1 Mask 1 | . . . . . . . 1 Scanalyzers . | . . . . . . . . Garrison Access . | . . . . . . . . Data Cores Recovered 1 | . 1 . . . . . . Used . | . . . . . . . . Hacking Detections 37 | . 9 . 11 . 6 4 7 Full Trace Events 4 | . 3 . . . 1 . . Feedback Events 1 | . 1 . . . . . . Corruption 1 | . 1 . . . . . . Feedback Blocked . | . . . . . . . . Robot Schematics Acquired 2 | . 1 . . . 1 . . Robots Built . | . . . . . . . . Authchips . | . . . . . . . . Time . | . . . . . . . . Total Robot Build Rating . | . . . . . . . . Part Schematics Acquired 8 | . 1 . 2 . 1 . 4 Parts Built . | . . . . . . . . Authchips . | . . . . . . . . Time . | . . . . . . . . Total Part Build Rating . | . . . . . . . . Parts Repaired 6 | . 2 . 1 . . . 3 Time 198 | . 52 . 26 . . . 120 Parts Recycled . | . . . . . . . . Recycled Matter . | . . . . . . . . Retrieved Matter . | . . . . . . . . Retrieved Components 15 | . 10 . . . . . 5 Parts Scanalyzed 6 | . . . 1 . 1 . 4 Part Schematics Acquired 6 | . . . 1 . 1 . 4 Parts Damaged . | . . . . . . . . Bothacking | -11 -10 -10 -9 -9 -8 -8 -8 ------------ Run | Yrd Mat Min Mat Min Mat Gar Mat Used RIF Installer 2 | . . . . . . 2 . Patrol Navigation 1 | . . . . . . 1 . Robots Hacked 2 | . . . . . . 1 1 Non-combat . | . . . . . . . . Combat 2 | . . . . . . 1 1 Robot Hacks Applied 2 | . . . . . . 1 1 overwrite_iff 1 | . . . . . . 1 . formatsys_high 1 | . . . . . . . 1 Relay Couplers Released 20 | . . . . . . 20 . Machine Destruction 20 | . . . . . . 20 . Attached 4 | . . . . . . 3 1 Fabnet Peak Effective % . | . . . . . . . . Robots Rewired 3 | . . . . . . 3 . Allies Hacked . | . . . . . . . . Hacks Repelled . | . . . . . . . . Allies | -11 -10 -10 -9 -9 -8 -8 -8 -------- Run | Yrd Mat Min Mat Min Mat Gar Mat Total Allies 5 | . . . . . . 4 1 Largest Group 4 | . . . . . . 4 3 Highest-Rated Group 110 | . . . . . . 110 95 Highest-Rated Ally 39 | . . . . . . 39 39 Total Orders . | . . . . . . . . Ally Attacks 48 | . . . . . . 33 15 Total Damage 811 | . . . . . . 585 226 Kills 9 | . . . . . . 6 3 Allies Corrupted . | . . . . . . . . Allies Melted . | . . . . . . . . Intel | -11 -10 -10 -9 -9 -8 -8 -8 ------- Run | Yrd Mat Min Mat Min Mat Gar Mat Active Infowar (turns) 8306 | 30 2071 1284 2551 1107 1179 84 . Seismic 8303 | 30 2068 1284 2551 1107 1179 84 . T.N.C. 3 | . 3 . . . . . . Robot Analysis Total . | . . . . . . . . Derelict Logs Recovered 2 | . . 1 . 1 . . . Drone Launches . | . . . . . . . . Drone Recoveries . | . . . . . . . . Exploration | -11 -10 -10 -9 -9 -8 -8 -8 ------------- Run | Yrd Mat Min Mat Min Mat Gar Mat Turns Passed 13935 | 254 2099 1284 3213 1835 1466 2020 1764 Spaces Moved 4933 | 106 824 392 1100 705 526 710 570 Core 3 | 2 . . . . . . 1 Treads 4930 | 104 824 392 1100 705 526 710 569 Legs . | . . . . . . . . Wheels . | . . . . . . . . Hover . | . . . . . . . . Flight . | . . . . . . . . Fastest Speed 50 | 50 160 320 240 240 235 238 243 Average Speed 241 | 157 214 320 240 240 237 239 248 Slowest Speed 1600 | 160 480 320 240 240 240 243 1600 Overloaded Moves . | . . . . . . . . Propulsion Burnouts . | . . . . . . . . Robots Hopped . | . . . . . . . . Potential Cave-ins . | . . . . . . . . Cave-ins Triggered . | . . . . . . . . Exploration Rate (%) 69 | 8 98 86 94 97 35 71 64 Regions Visited 7 Branch Regions 2 Pre-discovered Areas . | . . . . . . . . Known Exits Taken 3 | . 1 . 1 . 1 . . Unknown Exits Taken 3 | 1 . 1 . 1 . . . Scrap Searched 3 | . . 1 . 2 . . . Spaces Dug 146 | . 8 7 61 14 . 25 31 Terrain Destroyed 335 | . 28 7 140 35 25 26 74 Melee 6 | . . . 6 . . . . Projectile 68 | . . . 2 25 13 1 27 AOE 261 | . 28 7 132 10 12 25 47 Terrain Rammed . | . . . . . . . . Walls Destroyed . | . . . . . . . . Machines Disabled . | . . . . . . . . Actions | -11 -10 -10 -9 -9 -8 -8 -8 --------- Run | Yrd Mat Min Mat Min Mat Gar Mat Total 6240 | 149 1040 410 1434 775 679 911 842 Wait 462 | 10 91 4 95 14 54 30 164 Move 4926 | 105 823 391 1099 704 525 709 570 Hop . | . . . . . . . . Pick Up 101 | 6 22 3 26 3 20 16 5 Fast Attach 49 | 7 5 1 8 2 5 6 15 Attach 30 | . 3 . 6 1 7 5 8 Detach 5 | . 1 . . 1 1 . 2 Swap 107 | 1 15 4 38 6 8 26 9 Drop 123 | . 16 1 32 5 22 30 17 Fire 403 | 20 64 6 109 39 37 79 49 Melee 28 | . . . 21 . . 5 2 Ram . | . . . . . . . . Kick . | . . . . . . . . Crush 1 | . . . . . . . 1 Escape Stasis 4 | . . . . . . 4 . Rewire . | . . . . . . . . Trap 1 | . . . . . . 1 . Miscellaneous . | . . . . . . . . Route ------- -11/Scrapyard -10/Materials (discovered 4 exits: *Mat x3 / *Min) -10/Mines (discovered 3 exits: *Mat x2 / [*Sub]) -9/Materials (discovered 4 exits: *Mat x2 / *Min x2) -9/Mines -8/Materials -8/Garrison (discovered 4 exits: *Mat x4) -8/Materials (discovered 2 exits: [*Fac x2]) History --------- Turn | Location | Event 24 | -11/Scrapyard | Discovered new exit (range 16) 255 | -11/Scrapyard | Entered Materials 313 | -10/Materials | Build established: Mutant 597 | -10/Materials | Discovered new exit (range 5) 782 | -10/Materials | Discovered new exit (range 14) 884 | -10/Materials | Discovered new exit (range 9) 1054 | -10/Materials | Central database locked down 1434 | -10/Materials | Discovered new exit (range 11) 1684 | -10/Materials | Identified exit to Mines 1990 | -10/Materials | Repaired Lgt. Treads 2017 | -10/Materials | Repaired Lgt. Treads 2354 | -10/Materials | Entered Mines 2805 | -10/Mines | Discovered new exit (range 6) 2888 | -10/Mines | Discovered new exit (range 9) 2912 | -10/Mines | Received a Rocket Launcher from a helpful Derelict 3138 | -10/Mines | Found a hidden stash of uninstalled traps 3388 | -10/Mines | Learned Materials stockpile data 3503 | -10/Mines | Discovered new exit (range 9) 3638 | -10/Mines | Entered Materials 3638 | -9/Materials | Evolved 2 slots: Propulsion x1, Utility x1 3770 | -9/Materials | Discovered new exit (range 14) 4077 | -9/Materials | Discovered new exit (range 3) 4567 | -9/Materials | Discovered new exit (range 7) 4682 | -9/Materials | Repaired Beam Cannon 4874 | -9/Materials | Build established: Scavenger-Mutant 5503 | -9/Materials | Identified exit to Mines 5934 | -9/Materials | Discovered new exit (range 7) 6252 | -9/Materials | Core integrity fell below 50% 6851 | -9/Materials | Entered Mines 6898 | -9/Mines | Assembled infested the area 6903 | -9/Mines | Assisted by a Guerilla fighting off Assembled 6918 | -9/Mines | Met a Derelict shopkeep closing up shop 7164 | -9/Mines | Learned Materials trap positions 7224 | -9/Mines | Build established: Mutant 7440 | -9/Mines | Found a Scrap Suit stashed away for nefarious purposes 8050 | -9/Mines | Build established: Scavenger-Mutant 8127 | -9/Mines | Discovered new exit (range 7) 8686 | -9/Mines | Entered Materials 8686 | -8/Materials | Evolved 2 slots: Utility x2 8687 | -8/Materials | Loaded intel: 19 trap records 8823 | -8/Materials | Identified exit to Garrison 10152 | -8/Materials | Entered Garrison 10236 | -8/Garrison | Triggered checkpoint 10311 | -8/Garrison | Garrison Relay disabled 10426 | -8/Garrison | Triggered checkpoint 10612 | -8/Garrison | Triggered checkpoint 10810 | -8/Garrison | Discovered new exit (range 25) 10810 | -8/Garrison | Discovered new exit (range 42) 10810 | -8/Garrison | Discovered new exit (range 88) 10810 | -8/Garrison | Discovered new exit (range 39) 10979 | -8/Garrison | Triggered checkpoint 11207 | -8/Garrison | Installed Relay Interface Framework 11309 | -8/Garrison | Triggered checkpoint 11343 | -8/Garrison | Garrison Relay disabled 11416 | -8/Garrison | Garrison Relay disabled 11509 | -8/Garrison | Garrison Relay disabled 11717 | -8/Garrison | Build established: Bothacker-Mutant 11802 | -8/Garrison | Triggered checkpoint 11875 | -8/Garrison | Expanded RIF knowledge: Patrol Navigation 11900 | -8/Garrison | Triggered checkpoint 11978 | -8/Garrison | Triggered checkpoint 12001 | -8/Garrison | Garrison Relay disabled 12172 | -8/Garrison | Entered Materials 12172 | -8/Materials | Accompanied by 3 allies 12309 | -8/Materials | Repaired Arm. Treads 12572 | -8/Materials | First assault squad dispatched 12668 | -8/Materials | Lost 3 allies 13055 | -8/Materials | Discovered new exit (range 7) 13748 | -8/Materials | Repaired Arm. Treads 13793 | -8/Materials | Repaired Hvy. Ion Cannon 13856 | -8/Materials | Discovered new exit (range 9) 13861 | -8/Materials | Garrison activated, responded to threat 13870 | -8/Materials | Core integrity fell below 50% 13921 | -8/Materials | Core integrity fell below 20% 13936 | -8/Materials | Destroyed by G-47 Trooper with Particle Gun Last Messages --------------- 13877_ K-01 Serf collects debris. 13877_ Penetrated by Slug. 13877_ Imp. Light Armor Plating destroyed. 13878_ U-05 Engineer builds a Wall. 13879_ Crushed U-05 Engineer. 13879_ U-05 Engineer destroyed. 13897_ Arm. Treads destroyed. 13906_ K-01 Serf collects debris. 13911_ Lgt. Treads destroyed. 13911_ K-01 Serf collects debris. 13912_ Penetrated by Slug. 13913_ K-01 Serf collects debris. 13915_ Slug penetrates Wall. 13916_ K-01 Serf collects debris. 13918_ Hvy. Ion Cannon destroyed. 13918_ Imp. Heat Sink destroyed. 13919_ K-01 Serf collects debris. 13926_ Penetrated by Slug. 13934_ Lgt. Treads destroyed. 13935_ Arm. Treads destroyed. Map ----- +----------------------------------------------------+ | | | | | | | | | | | | | | | | | | | ???????????#############?????????????????????????? | | ??????????## """ #?????????????????????????? | | ??????????# "R" [[ #?????????????????????????? | | #########??# " " [[ #?????????????????????????? | | #??# #?????????????????????????? | | #### #??# #?????????????????????????? | | ???# #??# #?????????????????????????? | | #### #??# #?????????????????????????? | | ] ## #??##+###+######?????????????????????????? | | ## #####[ #??????????????????????????????? | | ## =%** #??????????????????????????????? | | ## ########+##^ #??????????????????????????????? | | ####+#????# # #??????????????????????????????? | | ##### # #??????????????????????????????? | | # # # #??########????????????????????? | | # < # = # #??#[[====#????????????????????? | | #% # [[ + #??#[[=@==#????????????????????? | | ! # [ # #??# #????????????????????? | | " #### ##???????????????????? | | % #![ " ggg ????????????? | | !=#=![ " hg g ???????????? | | #### %*#####+#########+####+#####????????????? | | != %* #????????????????????????????? | | [= "T" #????????????????????????????? | | ##" # % """ #????????????????????????????? | | ?#"T# % ! #????????????????????????????? | | ?##?# %##########????????????????????????????? | | ???# # #?????????????????????????????????????? | | ?? % #?????????????????????????????????????? | | ? ?????????????????????????????????????? | | / ?????????????????????????????????????? | | ?????????????????????????????????????? | | # ##????????????????????????????????????? | | # ##?????????????????????????????????????? | | ?# ???????????????????????????????????????? | | ??# === ???????????????????????????????????????? | | ??# === ???????????????????????????????????????? | | ?????= ???????????????????????????????????????? | | ??????? ???????????????????????????????????????? | | ?????????????????????????????????????????????????? | | ?????????????????????????????????????????????????? | +----------------------------------------------------+ Best States ------------- Heat Dissipation 78 Energy Generation 18 Energy Capacity 310 Matter Stores 300 Matter Capacity 300 Sight Range 16 Terrain Scan Density 10 Armor Coverage 225 Evasion (%) 40 Recoil Reduction 3 Particle Charging 15 Offensive Hacking 10 Relay Coupler Types 3 Relay Coupler Value 45 Item Schematics ----------------- Huge Storage Unit | -10/Materials | Hacked Heat Sink | -9/Materials | Scanalyzed Plasma Cutter | -9/Materials | Hacked Med. Armor Plating | -8/Materials | Scanalyzed Imp. Heat Sink | -8/Materials | Scanalyzed Lgt. Treads | -8/Materials | Scanalyzed Rocket Launcher | -8/Materials | Scanalyzed Imp. Datajack | -8/Materials | Scanalyzed Robot Schematics ------------------ M-13 Machinist | -10/Materials | Hacked M-28 Smith | -8/Materials | Hacked Fabricated ------------ Nothing Repaired ---------- Lgt. Treads | 55% | -10/Materials Lgt. Treads | 61% | -10/Materials Beam Cannon | 60% | -9/Materials Arm. Treads | 62% | -8/Materials Arm. Treads | 59% | -8/Materials Hvy. Ion Cannon | 42% | -8/Materials Alien Tech Used ----------------- None Achievements -------------- Exterminator Challenges ------------ None Game ------ Seed MappingMagneticAutocannon Manual? 0 Play Time 01:05:10 Cumulative 297.8 hours Start 2025.06.27 @ 01:19:34 End 2025.06.29 @ 02:35:03 Sessions 11 Manual Loads 0 Difficulty Rogue Special Mode None Game No. 77 Rogue 76 Adventurer 1 Explorer 0 Win Type - Total 26 Types 6/4/7/0/0/0/8/0/0/1 Lore% 64 Gallery% 74 Achievement% 70 Wizard Run 0 Options --------- Layout 0 ASCII 0 Keyboard 0 Movement Mouse Keybinds 0 Fullscreen 1 Font 18/Terminus Map View 76x50 Zoom Use 0% Tactical HUD 1 Map Filters NONE Filters NONE Steam 0 RUN: 5e8f3dab-9c68-463e-983e-3f176c57b29e